Cogmind - Beta 14 *** ADVENTURER MODE // 2024.12.07 @ 07:54:10 // Winter2019/RPGLIKE Player: Gallgagger Result: Destroyed by Triborg with Siege Cannon Performance ------------- Evolutions (1) 500 Regions Visited (7) 1400 Robots Destroyed (141) 705 Value Destroyed (4260) 4260 Prototype IDs (5) 100 Alien Tech Used (0) 0 Bonus (1270) 1270 TOTAL SCORE: 8235 Bonus ------- High Alert Combat Kills 446 Follower Combat Kills 274 Entered Garrisons 200 Used RIF Installer 500 Friendly Fire -150 Cogmind --------- Core Integrity 0/600 Matter 300/300 Energy 340/340 System Corruption 1% Temperature Cool (0) Movement Walking (120) Location -9/Scraptown Parts ------- > --- POWER (2) -------- Cooled Ion Engine Light Nuclear Core > --- PROPULSION (3) --- Aluminum Leg Aluminum Leg Aluminum Leg > --- UTILITY (5) ------ Improved Heat Sink Improved Target Analyzer Medium Armor Plating Hardened Light Armor Plating > --- WEAPON (3) ------- Beam Rifle Pulse Rifle CPS Tube > --- INVENTORY (1) ---- Beam Rifle Peak State ------------ > --- POWER ------------ Cooled Ion Engine Light Nuclear Core > --- PROPULSION ------- Aluminum Leg Aluminum Leg Aluminum Leg > --- UTILITY ---------- Improved Heat Sink Signal Interpreter Medium Reactive Plating Insulated Plating > --- WEAPON ----------- Improved Lightning Gun Beam Rifle Beam Rifle > --- INVENTORY -------- (None) [Rating: 30] Favorites ----------- Power Light Nuclear Core Engine Cooled Ion Engine Power Core Light Nuclear Core Propulsion Aluminum Leg Leg Aluminum Leg Utility Medium Armor Plating Device Improved Heat Sink Processor Signal Interpreter Protection Medium Armor Plating Weapon Beam Rifle Energy Gun Beam Rifle Special Weapon CPS Tube Build | -11 -10 -10 -9 -9 -9 -9 -9 ------- Run | Yrd Mat Min Mat Sto Gar Rec Scr Slots Evolved 9 | 4 1 1 3 . . . . Power 1 | 1 . . . . . . . Propulsion 2 | 1 1 . . . . . . Utility 4 | 1 . 1 2 . . . . Weapon 2 | 1 . . 1 . . . . Parts Attached 48 | 6 13 2 11 5 . . 11 Power 7 | 2 1 1 3 . . . . Engine 4 | 2 . . 2 . . . . Core 3 | . 1 1 1 . . . . Reactor . | . . . . . . . . Propulsion 4 | 2 1 . . 1 . . . Treads . | . . . . . . . . Leg 4 | 2 1 . . 1 . . . Wheel . | . . . . . . . . Hover . | . . . . . . . . Flight . | . . . . . . . . Utility 20 | . 4 1 5 2 . . 8 Device 1 | . . 1 . . . . . Storage . | . . . . . . . . Processor 2 | . . . 1 . . . 1 Hackware . | . . . . . . . . Protection 17 | . 4 . 4 2 . . 7 Artifact . | . . . . . . . . Weapon 17 | 2 7 . 3 2 . . 3 Energy Gun 16 | 2 7 . 3 2 . . 2 Energy Cannon . | . . . . . . . . Ballistic Gun . | . . . . . . . . Ballistic Cannon . | . . . . . . . . Launcher . | . . . . . . . . Special Weapon 1 | . . . . . . . 1 Impact Weapon . | . . . . . . . . Slashing Weapon . | . . . . . . . . Piercing Weapon . | . . . . . . . . Special Melee Weapon . | . . . . . . . . Unidentified Prototypes 3 | . . . 2 1 . . . Parts Lost 2 | . . . 1 . . . 1 Power . | . . . . . . . . Propulsion . | . . . . . . . . Utility 2 | . . . 1 . . . 1 Weapon . | . . . . . . . . Highest Loss Streak 1 | . . . 1 . . . 1 To Critical Strikes . | . . . . . . . . Average Slot Usage (%) 97 | . 91 100 98 99 100 100 96 Engine 6 | . 13 4 . 7 7 7 7 Core 10 | . 9 16 17 7 7 7 7 Leg 25 | . 28 31 26 23 23 23 23 Device 5 | . . 5 8 7 7 7 7 Processor 4 | . . . 6 7 7 7 7 Protection 18 | . 14 20 15 22 23 23 20 Energy Gun 22 | . 23 20 22 22 23 23 22 Peak Build Rating 30 | 6 15 20 25 28 28 28 30 Average Rating 22 | 4 12 17 21 26 28 28 27 On Entrance 18 | . 6 15 20 24 28 28 28 Naked Turns . | . . . . . . . . Heaviest Build 48 | 8 28 31 38 40 40 40 48 Greatest Support 40 | 20 35 35 40 40 40 40 40 Greatest Overweight (x) 1 | . 1 . . . . . 1 Average Overweight (x) . | . . . . . . . . Largest Inventory Capacity 1 | 1 1 1 1 1 1 1 1 Average Capacity . | . 1 1 1 1 1 1 1 Most Carried 1 | . 1 1 1 1 1 1 1 Average Carried . | . . 1 . 1 1 1 . Final Capacity 1 | 1 1 1 1 1 1 1 1 Final Carried 1 | . 1 1 1 1 1 1 1 Class Distribution -------------------- 25% | Commander-Tank 24% | Mutant 12% | Scavenger-Mutant 12% | Scavenger-Tank 11% | Scavenger-Gunner 6% | Hacker-Tank 4% | Commander-Gunner Dominant Class ---------------- Mutant | -10/Materials Scavenger-Mutant | -10/Mines Scavenger-Gunner | -9/Materials Scavenger-Tank | -9/Storage Scavenger-Tank | -9/Garrison Commander-Tank | -9/Recycling Commander-Tank | -9/Scraptown Resources | -11 -10 -10 -9 -9 -9 -9 -9 ----------- Run | Yrd Mat Min Mat Sto Gar Rec Scr Matter Collected 657 | 260 126 20 100 41 . . 110 Remotely . | . . . . . . . . Salvage Created 5031 | . 1152 266 1851 599 431 233 499 Parts 295 | . 61 12 102 62 32 9 17 Haulers Intercepted 5 | . 2 . 1 2 . . . Recyclers Shooed 1 | . . 1 . . . . . Parts Field Recycled . | . . . . . . . . Retrieved Matter . | . . . . . . . . Parts Self-Destructed . | . . . . . . . . Prevented . | . . . . . . . . Kills | -11 -10 -10 -9 -9 -9 -9 -9 ------- Run | Yrd Mat Min Mat Sto Gar Rec Scr Combat Hostiles Destroyed 122 | . 29 7 38 20 17 4 7 Guns 118 | . 27 7 36 20 17 4 7 Classes Destroyed 16 | . 5 1 4 . 1 . 5 Worker 2 | . . . 1 1 . . . Tunneler 1 | . . 1 . . . . . Hauler 5 | . 2 . 1 2 . . . Recycler 2 | . 2 . . . . . . Operator 4 | . . . 2 2 . . . Watcher 10 | . 3 . 5 2 . . . Swarmer 30 | . 3 3 3 7 14 . . Grunt 61 | . 26 4 26 4 1 . . Brawler 2 | . . . . . 1 1 . Duelist 2 | . . . 1 . 1 . . Sentry 21 | . . . 8 9 1 3 . Bolteater 1 | . . . . . . . 1 Explorer 3 | . . . . . . . 3 Ranger 1 | . . . . . . . 1 Guru 1 | . . . . . . . 1 Scrapper 1 | . . . . . . . 1 Best Kill Streak 7 | . 5 3 7 6 6 1 3 Combat Bots Only 7 | . 3 3 7 6 6 1 3 Max Kills in Single Turn 2 | . 2 2 2 1 2 1 1 Gunslinging 1 | . 1 . 1 . 1 . . Exploded . | . . . . . . . . Melee . | . . . . . . . . Uniques/NPCs Destroyed . | . . . . . . . . Combat | -11 -10 -10 -9 -9 -9 -9 -9 -------- Run | Yrd Mat Min Mat Sto Gar Rec Scr Hostile Shots Fired 438 | . 101 41 87 71 51 5 82 Missed 127 | . 30 12 28 29 11 1 16 Damage Taken 3637 | . 619 542 672 405 291 56 1052 Core 2299 | . 400 342 461 235 170 38 653 Absorbed by Shields 11 | . . . . . . . 11 Redirected to Core 1945 | . 336 270 373 194 165 38 569 Ignored by Resistances 1051 | . 190 153 195 121 89 16 287 Core Remaining (%) 75 | 100 . 50 . . . . . Volleys Fired 300 | . 83 15 89 50 31 8 24 Largest 3 | . 2 2 3 3 3 3 3 Hottest 175 | . 130 112 168 172 172 172 175 Shots Fired 709 | . 166 30 205 150 84 24 50 Gun 709 | . 166 30 205 150 84 24 50 Cannon . | . . . . . . . . Launcher . | . . . . . . . . Special . | . . . . . . . . Kinetic . | . . . . . . . . Thermal 641 | . 166 30 205 121 53 16 50 Explosive . | . . . . . . . . Electromagnetic 68 | . . . . 29 31 8 . Robot Hit Streak 39 | . 28 31 39 23 8 9 22 Robot Miss Streak 3 | . 2 1 3 3 2 1 2 Penetration Max . | . . . . . . . . Secondary Targets 19 | . 1 1 2 3 7 . 5 Max Gunslinging Chain 2 | . 1 1 1 1 2 . 1 Shots Hit Robots 482 | . 133 23 136 93 39 16 42 Core Hits 196 | . 55 10 56 35 20 5 15 Critical Kills . | . . . . . . . . Critical Parts Destroyed . | . . . . . . . . Critical Strikes 41 | . 7 5 13 3 1 2 10 Burn 41 | . 7 5 13 3 1 2 10 Melee Attacks . | . . . . . . . . Impact . | . . . . . . . . Slashing . | . . . . . . . . Piercing . | . . . . . . . . Sneak Attacks . | . . . . . . . . Combat Hostiles . | . . . . . . . . Follow-up Attacks . | . . . . . . . . Damage Inflicted 8425 | . 1965 422 2290 1898 804 324 722 Guns 8322 | . 1957 393 2266 1867 804 324 711 Cannons . | . . . . . . . . Explosions . | . . . . . . . . Melee . | . . . . . . . . Ramming 103 | . 8 29 24 31 . . 11 Kinetic . | . . . . . . . . Thermal 7359 | . 1957 393 2266 1355 499 178 711 Explosive . | . . . . . . . . Electromagnetic 963 | . . . . 512 305 146 . Impact . | . . . . . . . . Slashing . | . . . . . . . . Piercing . | . . . . . . . . Highest Corruption 1 | . . . . . . . 1 Average Corruption 1 | . . . . . . . 1 Corruption Purged . | . . . . . . . . Corruption Blocked . | . . . . . . . . Overload Shots . | . . . . . . . . Overflow Damage . | . . . . . . . . Projectiles . | . . . . . . . . Explosions . | . . . . . . . . Melee . | . . . . . . . . Knockbacks . | . . . . . . . . Impact . | . . . . . . . . Kinetic . | . . . . . . . . Secondary . | . . . . . . . . Self-Inflicted Damage . | . . . . . . . . Shots . | . . . . . . . . Rammed . | . . . . . . . . Targets Rammed 25 | . 4 6 8 6 . . 1 Kicked 25 | . 4 6 8 6 . . 1 Crushed . | . . . . . . . . Highest Temperature 126 | . 126 . . . . . 22 Average Temperature 60 | . 69 . . . . . 11 Received Heat Transfer 1636 | . 468 60 255 171 36 27 619 Siege Activations . | . . . . . . . . Robots Corrupted . | . . . . . . . . Combat Hostiles . | . . . . . . . . Parts Fried 2 | . . . . . 2 . . Impact Corruptions . | . . . . . . . . Robots Melted 4 | . 2 . 2 . . . . Combat Hostiles 4 | . 2 . 2 . . . . Parts Melted 57 | . 15 4 19 7 3 . 9 Heat Transferred 19416 | . 5272 1295 6142 2997 1054 518 2138 Parts Sabotaged . | . . . . . . . . Parts Stolen 1 | . . . . . . . 1 Parts Stripped . | . . . . . . . . Power Chain Reactions . | . . . . . . . . Alert | -11 -10 -10 -9 -9 -9 -9 -9 ------- Run | Yrd Mat Min Mat Sto Gar Rec Scr Peak Influence 893 | . 256 296 836 637 893 493 . Initial 343 | . . 46 97 243 325 343 . Average 358 | . 117 187 494 408 688 400 . Maximum Alert Level 3 | . 1 1 3 2 3 2 . Low Security (%) 27 | 100 73 47 10 2 . . . Level 1 31 | . 26 52 29 40 15 34 . Level 2 32 | . . . 47 57 19 65 . Level 3 8 | . . . 12 . 64 . . Level 4 . | . . . . . . . . Level 5 . | . . . . . . . . High Security . | . . . . . . . . Max Security . | . . . . . . . . Squads Dispatched 22 | . 9 . 8 5 . . . Investigation 16 | . 9 . 6 1 . . . Extermination . | . . . . . . . . Reinforcement 5 | . . . 2 3 . . . Assault . | . . . . . . . . Garrison 1 | . . . . 1 . . . Intercept . | . . . . . . . . Searches Triggered . | . . . . . . . . Construction Impeded 1 | . . . 1 . . . . Haulers Reinforced . | . . . . . . . . Active Scanning Responses . | . . . . . . . . Cargo Convoy Interrupts . | . . . . . . . . Stealth | -11 -10 -10 -9 -9 -9 -9 -9 --------- Run | Yrd Mat Min Mat Sto Gar Rec Scr Distress Signals 7 | . . 1 2 3 . . 1 Communications Jammed . | . . . . . . . . Distress Signals . | . . . . . . . . Times Spotted 173 | . 33 18 48 35 19 3 17 Peak Tracking Total 8 | . 3 4 5 4 5 1 8 Tactical Retreats 13 | . . 6 3 2 1 . 1 Traps | -11 -10 -10 -9 -9 -9 -9 -9 ------- Run | Yrd Mat Min Mat Sto Gar Rec Scr Traps Triggered 7 | . 1 . 2 4 . . . Indirectly . | . . . . . . . . Trap Hack Attempts . | . . . . . . . . Triggered . | . . . . . . . . Disarmed . | . . . . . . . . Reprogrammed . | . . . . . . . . Reused . | . . . . . . . . Traps Extracted . | . . . . . . . . Installed . | . . . . . . . . Triggered . | . . . . . . . . Machines | -11 -10 -10 -9 -9 -9 -9 -9 ---------- Run | Yrd Mat Min Mat Sto Gar Rec Scr Machines Disabled 12 | . . . 2 5 2 . 3 Max in Single Turn 1 | . . . 1 1 1 . 1 Garrison Relay 1 | . . . . . 1 . . Machines Repaired . | . . . . . . . . Machines Dismantled . | . . . . . . . . Machines Sabotaged 2 | . 1 . 1 . . . . Overloaded Fab Kills . | . . . . . . . . Hacking | -11 -10 -10 -9 -9 -9 -9 -9 --------- Run | Yrd Mat Min Mat Sto Gar Rec Scr Machines Accessed 32 | . 9 . 7 6 3 7 . Terminals 20 | . 7 . 5 4 3 1 . Fabricators . | . . . . . . . . Repair Stations . | . . . . . . . . Recycling Units 11 | . 2 . 2 1 . 6 . Scanalyzers . | . . . . . . . . Garrison Access 1 | . . . . 1 . . . Total Hacks 52 | . 20 . 11 9 4 8 . Successful 40 | . 13 . 9 7 3 8 . Failed 12 | . 7 . 2 2 1 . . Catastrophic 1 | . . . . 1 . . . Database Lockouts . | . . . . . . . . Manual 36 | . 13 . 11 4 . 8 . Terminals 40 | . 18 . 9 7 4 2 . Fabricators . | . . . . . . . . Repair Stations . | . . . . . . . . Recycling Units 11 | . 2 . 2 1 . 6 . Scanalyzers . | . . . . . . . . Garrison Access 1 | . . . . 1 . . . Terminal Hacks 17 | . 5 . 4 5 3 . . Record 1 | . 1 . . . . . . Robot Analysis 5 | . 2 . 3 . . . . Prototype ID Bank 1 | . 1 . . . . . . Open Door 3 | . . . . 3 . . . Branch Access Points 1 | . . . 1 . . . . Emergency Access Points 1 | . . . . . 1 . . Unreport Threat 2 | . . . . 2 . . . Locate Traps 1 | . 1 . . . . . . Garrison Registry 1 | . . . . . 1 . . Security Stations 1 | . . . . . 1 . . Fabricator Hacks . | . . . . . . . . Repair Station Hacks . | . . . . . . . . Recycling Unit Hacks . | . . . . . . . . Scanalyzer . | . . . . . . . . Garrison Access Hacks 1 | . . . . 1 . . . Unlock Access 1 | . . . . 1 . . . Unauthorized Hacks 22 | . 8 . 5 1 . 8 . Terminals 11 | . 6 . 3 . . 2 . Botnet 1 | . . . . . . 1 . Operators 1 | . . . . . . 1 . Sabotage 9 | . 6 . 3 . . . . Fabricators . | . . . . . . . . Repair Stations . | . . . . . . . . Recycling Units 11 | . 2 . 2 1 . 6 . Tunnel 11 | . 2 . 2 1 . 6 . Scanalyzers . | . . . . . . . . Garrison Access . | . . . . . . . . Data Cores Recovered 2 | . . . 2 . . . . Used . | . . . . . . . . Hacking Detections 6 | . 2 . 1 1 2 . . Full Trace Events 1 | . 1 . . . . . . Feedback Events . | . . . . . . . . Feedback Blocked . | . . . . . . . . Robot Schematics Acquired . | . . . . . . . . Robots Built . | . . . . . . . . Authchips . | . . . . . . . . Time . | . . . . . . . . Total Robot Build Rating . | . . . . . . . . Part Schematics Acquired . | . . . . . . . . Parts Built . | . . . . . . . . Authchips . | . . . . . . . . Time . | . . . . . . . . Total Part Build Rating . | . . . . . . . . Parts Repaired . | . . . . . . . . Time . | . . . . . . . . Parts Recycled . | . . . . . . . . Recycled Matter . | . . . . . . . . Retrieved Matter . | . . . . . . . . Retrieved Components . | . . . . . . . . Parts Scanalyzed . | . . . . . . . . Part Schematics Acquired . | . . . . . . . . Parts Damaged . | . . . . . . . . Bothacking | -11 -10 -10 -9 -9 -9 -9 -9 ------------ Run | Yrd Mat Min Mat Sto Gar Rec Scr Used RIF Installer 1 | . . . . . 1 . . Robots Hacked . | . . . . . . . . Non-combat . | . . . . . . . . Combat . | . . . . . . . . Robot Hacks Applied . | . . . . . . . . Relay Couplers Released 1 | . . . . . 1 . . Machine Destruction 1 | . . . . . 1 . . Fabnet Peak Effective % . | . . . . . . . . Robots Rewired 13 | . . . . 1 . 12 . Allies Hacked . | . . . . . . . . Hacks Repelled . | . . . . . . . . Allies | -11 -10 -10 -9 -9 -9 -9 -9 -------- Run | Yrd Mat Min Mat Sto Gar Rec Scr Total Allies 22 | . . . . 10 . 12 . Largest Group 12 | . . . . 10 1 12 12 Highest-Rated Group 135 | . . . . 88 8 135 135 Highest-Rated Ally 27 | . . . . 16 8 27 27 Total Orders 15 | . . . . . . . 15 STAY 13 | . . . . . . . 13 FOLLOW 2 | . . . . . . . 2 Ally Attacks 106 | . . . . 47 1 . 58 Total Damage 1083 | . . . . 384 12 . 687 Kills 18 | . . . . 8 1 . 9 Allies Corrupted . | . . . . . . . . Allies Melted . | . . . . . . . . Intel | -11 -10 -10 -9 -9 -9 -9 -9 ------- Run | Yrd Mat Min Mat Sto Gar Rec Scr Robot Analysis Total 5 | . 2 . 3 . . . . Derelict Logs Recovered . | . . . . . . . . Drone Launches . | . . . . . . . . Drone Recoveries . | . . . . . . . . Exploration | -11 -10 -10 -9 -9 -9 -9 -9 ------------- Run | Yrd Mat Min Mat Sto Gar Rec Scr Turns Passed 7904 | 51 1705 390 1815 959 517 819 1648 Spaces Moved 5273 | 38 1072 272 1162 600 342 560 1227 Core 4 | 4 . . . . . . . Treads . | . . . . . . . . Legs 5269 | 34 1072 272 1162 600 342 560 1227 Wheels . | . . . . . . . . Hover . | . . . . . . . . Flight . | . . . . . . . . Fastest Speed 50 | 50 120 120 120 120 120 120 120 Average Speed 120 | 112 120 120 120 120 120 120 123 Slowest Speed 190 | 120 190 120 120 120 120 120 190 Overloaded Moves . | . . . . . . . . Propulsion Burnouts . | . . . . . . . . Robots Hopped . | . . . . . . . . Cave-ins Triggered . | . . . . . . . . Exploration Rate (%) 65 | 4 97 33 83 89 68 97 56 Regions Visited 7 Branch Regions 4 Pre-discovered Areas 11 | . 2 . 2 1 . 6 . Known Exits Taken 3 | . . . 1 1 . 1 . Unknown Exits Taken 3 | 1 1 1 . . . . . Scrap Searched 5 | . . 1 . . . . 4 Spaces Dug . | . . . . . . . . Terrain Destroyed 20 | . . . . 20 . . . Melee . | . . . . . . . . Projectile . | . . . . . . . . AOE 20 | . . . . 20 . . . Terrain Rammed . | . . . . . . . . Walls Destroyed . | . . . . . . . . Machines Disabled . | . . . . . . . . Actions | -11 -10 -10 -9 -9 -9 -9 -9 --------- Run | Yrd Mat Min Mat Sto Gar Rec Scr Total 6169 | 43 1317 304 1392 723 384 689 1317 Wait 326 | . 108 7 71 32 . 78 30 Move 5266 | 37 1071 271 1161 599 341 559 1227 Hop . | . . . . . . . . Pick Up 5 | . . . 1 . . . 4 Fast Attach 31 | 6 7 1 7 4 . . 6 Attach 2 | . . . . . . . 2 Detach 2 | . . . . . . . 2 Swap 15 | . 6 1 4 1 . . 3 Drop 16 | . 3 1 3 . . . 9 Fire 300 | . 83 15 89 50 31 8 24 Melee . | . . . . . . . . Ram . | . . . . . . . . Kick 25 | . 4 6 8 6 . . 1 Crush . | . . . . . . . . Escape Stasis . | . . . . . . . . Rewire 38 | . . . . 1 . 37 . Trap . | . . . . . . . . Miscellaneous 143 | . 35 2 48 30 12 7 9 Route ------- -11/Scrapyard -10/Materials (discovered 5 exits: *Mat x3 / [*Min x2]) -10/Mines -9/Materials (discovered 6 exits: [*Mat x3] / *Min x2 / *Sto) -9/Storage (discovered 2 exits: [*Mat] / Gar) -9/Garrison (discovered 3 exits: *Rec x3) -9/Recycling (discovered 2 exits: [*Fac] / *Scr) -9/Scraptown (discovered 1 exit: [*Fac]) History --------- Turn | Location | Event 5 | -11/Scrapyard | Discovered new exit (range 14) 7 | -11/Scrapyard | Upgraded with Power slot (x1) 7 | -11/Scrapyard | Upgraded with Propulsion slot (x1) 7 | -11/Scrapyard | Upgraded with Utility slot (x1) 7 | -11/Scrapyard | Upgraded with Weapon slot (x1) 52 | -11/Scrapyard | Entered Materials 222 | -10/Materials | Discovered new exit (range 7) 309 | -10/Materials | Build established: Mutant 376 | -10/Materials | Discovered new exit (range 16) 463 | -10/Materials | Discovered new exit (range 13) 625 | -10/Materials | Discovered new exit (range 16) 830 | -10/Materials | Reached level 2 924 | -10/Materials | Discovered new exit (range 16) 1065 | -10/Materials | Upgraded with Propulsion slot (x1) 1325 | -10/Materials | Reached level 3 1757 | -10/Materials | Entered Mines 1759 | -10/Mines | Reached level 4 1831 | -10/Mines | Discovered new exit (range 10) 1927 | -10/Mines | Upgraded with Utility slot (x1) 1979 | -10/Mines | Assembled infested the area 2147 | -10/Mines | Entered Materials 2149 | -9/Materials | Reached level 5 2214 | -9/Materials | Build established: Scavenger-Mutant 2252 | -9/Materials | Core integrity fell below 50% 2349 | -9/Materials | Reached level 6 2421 | -9/Materials | Discovered new exit (range 7) 2461 | -9/Materials | Discovered new exit (range 8) 2480 | -9/Materials | Identified exit to Mines 2480 | -9/Materials | Identified exit to Storage 2684 | -9/Materials | Destroyed 7 combat bots 2740 | -9/Materials | Reached level 7 2812 | -9/Materials | Discovered new exit (range 16) 2855 | -9/Materials | Upgraded with Utility slot (x1) 2944 | -9/Materials | Upgraded with Weapon slot (x1) 3105 | -9/Materials | Discovered new exit (range 16) 3115 | -9/Materials | Reached level 8 3233 | -9/Materials | Build established: Scavenger-Gunner 3424 | -9/Materials | Discovered new exit (range 16) 3723 | -9/Materials | Reached level 9 3807 | -9/Materials | Upgraded with Utility slot (x1) 3962 | -9/Materials | Entered Storage 4123 | -9/Storage | Build established: Scavenger-Tank 4209 | -9/Storage | Assisted by bots powering up and referring to "LRC-V3" 4355 | -9/Storage | Reached level 10 4499 | -9/Storage | Build established: Commander-Tank 4621 | -9/Storage | Discovered new exit (range 16) 4886 | -9/Storage | Garrison activated, responded to threat 4920 | -9/Storage | Identified exit to Garrison 4921 | -9/Storage | Entered Garrison 4921 | -9/Garrison | Accompanied by 1 ally 4936 | -9/Garrison | Build established: Scavenger-Tank 4967 | -9/Garrison | Triggered checkpoint 5052 | -9/Garrison | Reached level 11 5105 | -9/Garrison | Garrison Relay disabled 5166 | -9/Garrison | Learned Recycling security intel 5187 | -9/Garrison | Discovered new exit (range 10) 5199 | -9/Garrison | Triggered checkpoint 5243 | -9/Garrison | Discovered new exit (range 74) 5243 | -9/Garrison | Discovered new exit (range 14) 5243 | -9/Garrison | Discovered new exit (range 57) 5287 | -9/Garrison | Triggered checkpoint 5329 | -9/Garrison | Triggered checkpoint 5391 | -9/Garrison | Installed Relay Interface Framework 5435 | -9/Garrison | Identified exit to Recycling 5438 | -9/Garrison | Entered Recycling 5544 | -9/Recycling | Build established: Hacker-Tank 5691 | -9/Recycling | Discovered new exit (range 15) 6095 | -9/Recycling | Build established: Commander-Tank 6149 | -9/Recycling | Scanned before Scraplab entrance 6214 | -9/Recycling | Entered Scraplab 6224 | -9/Recycling | Discovered new exit (range 2) 6224 | -9/Recycling | Identified exit to Scraptown 6257 | -9/Recycling | Entered Scraptown 6257 | -9/Scraptown | Accompanied by 12 allies 6504 | -9/Scraptown | Visited Cyclists 6525 | -9/Scraptown | Visited IN-MT5's Study 6555 | -9/Scraptown | Visited Shadow of the Wyrm 6567 | -9/Scraptown | Visited TADAMA 6584 | -9/Scraptown | Visited Awakened 6592 | -9/Scraptown | Visited Spacefarers 6687 | -9/Scraptown | Discovered new exit (range 11) 7700 | -9/Scraptown | Attacked by Scraptown defenders 7884 | -9/Scraptown | Lost 6 allies 7894 | -9/Scraptown | Core integrity fell below 20% 7905 | -9/Scraptown | Destroyed by Triborg with Siege Cannon Last Messages --------------- 07890_ B4-20G(p) destroyed. 07890_ Switching to secondary target: E7-EJH(x). 07890_ Destroyed Lgt. Ion Engine. 07891_ Lgt. Armor Plating destroyed. 07891_ Critical hit (Impale). 07896_ J4-4I1(j) cannibalizes Imp. Heat Sink to repair Mak. Microdissipator Network. 07896_ Mak. Spear melted. 07896_ E7-EJH(x) destroyed. 07896_ Switching to secondary target: NY-PBD(x). 07899_ NY-PBD(x) suffers critical hit (Burn). 07901_ Triborg activates siege mode. 07901_ Siege Slug penetrates Wall. 07901_ Siege Slug penetrates Machine. 07902_ VSS Leg melted. 07902_ Imp. Sensor Array melted. 07902_ NY-PBD(x) destroyed. 07902_ Switching to secondary target: Triborg. 07903_ Siege Slug penetrates Machine. 07905_ Penetrated by Siege Slug. Map ----- +----------------------------------------------------+ | ?#"" """"""" #" "#????????# | | ??## ####### #"" """########### | | ???????????# | | ??????###### | | ??"" """"""" #"" """##"" """### | | ??" " " "" #" "##"" "#?# | | ?#" " " "" #"" "##"" "#?# | | ?#" " "" #"" "##""! "#?# | | ?#" "" #"" " "##"%! "#?# | | ?#" #"""" "##"/] "#?# | | ?#"" " #""""""##""""""#?# | | ?#""" "" ################?# | | ??"" ""% #######??#####???# | | ??""" ""%["""""""#?#"""#???# | | ??"""""" """=%" "#?#" "#???# | | ???##### ###!%! """ "#?# #???# | | ?????? ??# """ "#?# ##### | | ?### #######j " """ "??# | | ?#"" """""" " """ "??# | | ?#" "%% """ "??# | | ?#" """"" !" """ "??##### ## | | ?#" """"" """ "#?????# #? | | ?#" """""" %= """ "####### ## | | ?#" "" ""= %%% """ "##""""" "" | | ?#" j"" =jj"[%" "##"""%" " | | ?#" %@%[["% """""""##" ![ | | ?#""""""% #########""""" "" | | ?#########;; ##??????###### ## | | ??????????# % ############# ## | | ??????????# ! TT %% % =*%!= | | ??????????#| !TT /%%= [=%[ / | | ??????????#!|! ### " " " ""##### | | ??????????######?#""" """#???? | | ?????????????????#""" ""#???? | | ?????????????????#"""" "#???? | | ?????????????????#""""" "#???? | | ?????????????????#"""""""""#???? | | ??????????????????##########???? | | | | | | | | | | | | | | | | | | | | | | | | | +----------------------------------------------------+ Best States ------------- Heat Dissipation 87 Energy Generation 23 Energy Capacity 340 Matter Stores 300 Matter Capacity 300 Sight Range 16 Terrain Scan Density 10 Armor Coverage 525 Resistance: KI 50 Resistance: TH 20 Resistance: EX 20 Resistance: EM 35 Resistance: I 20 Resistance: S 20 Resistance: P 20 Evasion (%) 55 Target Analysis 6 Offensive Hacking 25 Defensive Hacking 15 Item Schematics ----------------- None Robot Schematics ------------------ None Fabricated ------------ Nothing Alien Tech Used ----------------- None Achievements -------------- None Challenges ------------ None RPGLIKE | -11 -10 -10 -9 -9 -9 -9 -9 --------- Run | Yrd Mat Min Mat Sto Gar Rec Scr Levels Raised 10 | . 2 1 5 1 1 . . XP Earned 20027 | 4000 4225 1350 6557 2321 910 542 122 XP Spent 15610 | 2250 2960 800 6300 . 2700 . 600 Upgrades 33 | 5 13 1 7 . 6 . 1 Power Slot 1 | 1 . . . . . . . Propulsion Slot 2 | 1 1 . . . . . . Utility Slot 4 | 1 . 1 2 . . . . Weapon Slot 2 | 1 . . 1 . . . . Heat Dissipation 8 | . 8 . . . . . . Mass Support 2 | . 1 . 1 . . . . Inventory Capacity 1 | 1 . . . . . . . Ranged Accuracy 3 | . 1 . 1 . . . 1 Hack Attack % 3 | . . . . . 3 . . Hack Defense % 3 | . . . . . 3 . . TH Damage % 4 | . 2 . 2 . . . . Protomatter Created 1481 | . 426 58 344 432 121 56 44 Integrity Restored 2810 | . 646 45 1015 554 231 159 160 Core 1672 | . 400 45 746 183 225 47 26 Parts 1138 | . 246 . 269 371 6 112 134 Protomatter Decayed 915 | . 164 79 17 350 13 . 292 Game ------ Seed MinesnifferSmartbombSplitter Manual? 0 Play Time 00:51:28 Cumulative 192.6 hours Start 2024.12.07 @ 07:00:48 End 2024.12.07 @ 07:54:10 Sessions 1 Manual Loads 0 Difficulty Adventurer Special Mode Winter2019/RPGLIKE Game No. 92 Rogue 0 Adventurer 92 Explorer 0 Win Type - Total 7 Types 2/1/2/2/0/0/0/0/0 Lore% 74 Gallery% 66 Achievement% 73 Wizard Run 0 Options --------- Layout 2 ASCII 0 Keyboard 0 Movement Numpad Keybinds 0 Fullscreen 2 Font 24/Smallcaps Map View 50x44 Zoom Use 0% Tactical HUD 1 Map Filters NONE Filters NONE Steam 1 RUN: 38431b15-47bb-4114-b8ab-5bef7ebdcb42